Department Family,Entity,Payment Date,Expense Type,Expense Area,Supplier,Transaction Number,Amount,Invoice Description,Postal Code,"Programme, Admin or Capital Spend"
Food Standards Agency,Food Standards Agency,01/05/2012,Programme Evidence & Research Expenditure,Analysis & Research Branch,University Of Hertfordshire,37950,"51,704.80",PO 405913 2ND INSTALLMENT PRIMARY LOT FS244026 RESEARCH DOMESTIC KITCHEN PRATICES,AL10 9AB,Programme
Food Standards Agency,Food Standards Agency,01/05/2012,Programme Evidence & Research Expenditure,Delivery,Trading Standards South East Ltd,CD200840,"79,348.38",PO 405838 BALANCE OF LA GRANT FOR FOOD SAMPLING 2011/12,KT22 7AH,Programme
Food Standards Agency,Food Standards Agency,01/05/2012,Programme Evidence & Research Expenditure,Contaminants Policy & Strategy Unit,Food & Environment Research Agency,F0020965,"22,020.00",PO 400946 SURVIVABILITY MODELLING PROGRESS REPORT,YO41 1LZ,Programme
Food Standards Agency,Food Standards Agency,03/05/2012,Project Programme expenditure,Delivery,Westminster City Council,YP25012569,"41,373.75",PO 407838 FOOD STANDARDS AGENCY OLYMPIC GRANT FUNDING,SW1E 6QP,Programme
Food Standards Agency,Food Standards Agency,03/05/2012,Programme Evidence & Research Expenditure,Food Production Branch,Agri-Food & Biosciences Institute,INV04303,"29,750.00",PO 404011 FS241049,BT9 5PX,Programme
Food Standards Agency,Food Standards Agency,08/05/2012,Project Programme expenditure,Analysis & Research Branch,Agri-Food & Biosciences Institute,INV04304,"20,961.00",PO 401102 FS111013 JAN-MAR 2012,BT9 5PX,Programme
Food Standards Agency,Food Standards Agency,08/05/2012,Project Programme expenditure,Analysis & Research Branch,Agri-Food & Biosciences Institute,INV04304,"9,133.99",PO 401102 FS111013 JAN-MAR 2012,BT9 5PX,Programme
Food Standards Agency,Food Standards Agency,08/05/2012,Programme Evidence & Research Expenditure,Delivery,Cornwall County Council,98100457,"55,575.30",PO 403997 LA GRANT REF 38 TRADING STANDARDS PARTNERSHIP SWERCOTS NATIONAL CO-ORDINATED RISK BASED FOOD & FEED SAMPLING,TR1 3AY,Programme
Food Standards Agency,Food Standards Agency,08/05/2012,Project Programme expenditure,Official Controls & Enforcement Strategy,A B C Food Safety,5107,"7,200.00",PO 407766 DEVELOPMENT OF FSA IMPORTED FOOD CONTROL COURSE,NR3 1YE,Programme
Food Standards Agency,Food Standards Agency,08/05/2012,Project Programme expenditure,Official Controls & Enforcement Strategy,A B C Food Safety,5107,"4,800.00",PO 407766 DEVELOPMENT OF FSA IMPORTED FOOD CONTROL COURSE,NR3 1YE,Programme
Food Standards Agency,Food Standards Agency,08/05/2012,Project Programme expenditure,Official Controls & Enforcement Strategy,A B C Food Safety,5107,"4,800.00",PO 407766 DEVELOPMENT OF FSA IMPORTED FOOD CONTROL COURSE,NR3 1YE,Programme
Food Standards Agency,Food Standards Agency,08/05/2012,Project Programme expenditure,Official Controls & Enforcement Strategy,A B C Food Safety,5107,"3,600.00",PO 407766 DEVELOPMENT OF FSA IMPORTED FOOD CONTROL COURSE,NR3 1YE,Programme
Food Standards Agency,Food Standards Agency,08/05/2012,Project Programme expenditure,Official Controls & Enforcement Strategy,A B C Food Safety,5107,"2,400.00",PO 407766 DEVELOPMENT OF FSA IMPORTED FOOD CONTROL COURSE,NR3 1YE,Programme
Food Standards Agency,Food Standards Agency,08/05/2012,Project Programme expenditure,Official Controls & Enforcement Strategy,A B C Food Safety,5107,"1,000.00",PO 407766 DEVELOPMENT OF FSA IMPORTED FOOD CONTROL COURSE,NR3 1YE,Programme
Food Standards Agency,Food Standards Agency,08/05/2012,Project Programme expenditure,Official Controls & Enforcement Strategy,A B C Food Safety,5107,"1,000.00",PO 407766 DEVELOPMENT OF FSA IMPORTED FOOD CONTROL COURSE,NR3 1YE,Programme
Food Standards Agency,Food Standards Agency,08/05/2012,Project Programme expenditure,Official Controls & Enforcement Strategy,A B C Food Safety,5107,900,PO 407766 DEVELOPMENT OF FSA IMPORTED FOOD CONTROL COURSE,NR3 1YE,Programme
Food Standards Agency,Food Standards Agency,08/05/2012,Office machinery: hire,IT Service Delivery,The Danwood Group Ltd,3076785,"26,410.00",PO 407959 QUARTERLY RENTAL CHGS AS PER MPS AGREEMENT FROM 22/5/12 TO 21/08/12,LN6 3DG,Admin
Food Standards Agency,Food Standards Agency,08/05/2012,Rates/contrib in lieu of rates,Security & Estates,London Borough Of Camden,6501635918APR12,"28,620.00",PO 407854 A/C REF 0065016359 BID LEVY = RV 3180000 X 0.009000 1/4/12 TO 31/3/13,WC1H 8NH,Admin
Food Standards Agency,Food Standards Agency,08/05/2012,Rates/contrib in lieu of rates,Security & Estates,London Borough Of Camden,68351658MAY12,"152,004.00",PO 407405 BUSINESS RATES FOR MAY 2012,WC1H 8NH,Admin
Food Standards Agency,Food Standards Agency,10/05/2012,Project Programme expenditure,Delivery,Williams Lea Ltd,FSAWE12040002,"48,700.85",PO 406819 CATERING PACK/DVD9 FOR CATERERS/DIARY REFILL,W2 6LG,Programme
Food Standards Agency,Food Standards Agency,10/05/2012,Project Programme expenditure,Delivery,Williams Lea Ltd,FSAWE12040004,"24,034.08",PO 407130 MARCH WAREHOUSING,W2 6LG,Programme
Food Standards Agency,Food Standards Agency,10/05/2012,Project Programme expenditure,Delivery,Williams Lea Ltd,FSAWE12040004,"14,069.34",PO 407130 MARCH WAREHOUSING,W2 6LG,Programme
Food Standards Agency,Food Standards Agency,10/05/2012,Project Programme expenditure,Delivery,Williams Lea Ltd,FSAWE12040004,"8,004.20",PO 407130 MARCH WAREHOUSING,W2 6LG,Programme
Food Standards Agency,Food Standards Agency,10/05/2012,Project Programme expenditure,Delivery,Williams Lea Ltd,FSAWE12040004,118.93,PO 407130 MARCH WAREHOUSING,W2 6LG,Programme
Food Standards Agency,Food Standards Agency,10/05/2012,Programme Evidence & Research Expenditure,Delivery,City Of York Council,9100858713,"29,280.80",PO 403839 FOOD AND FEED SAMPLING PROGRAMME,YO1 7WH,Programme
Food Standards Agency,Food Standards Agency,10/05/2012,Mobile phone charges,IT Service Delivery,Vodafone Ltd,61322082,"41,465.27",PO 407574 VODAFONE BILL FOR 787 MOBILES,RG14 5FF,Admin
Food Standards Agency,Food Standards Agency,10/05/2012,Mobile phone charges,IT Service Delivery,Vodafone Ltd,61322082,"8,293.05",PO 407574 VODAFONE BILL FOR 787 MOBILES,RG14 5FF,Admin
Food Standards Agency,Food Standards Agency,10/05/2012,Mobile phone charges,IT Service Delivery,Vodafone Ltd,61322082,518.57,PO 407574 VODAFONE BILL FOR 787 MOBILES,RG14 5FF,Admin
Food Standards Agency,Food Standards Agency,10/05/2012,Mobile phone charges,IT Service Delivery,Vodafone Ltd,61322082,10.5,PO 407574 VODAFONE BILL FOR 787 MOBILES,RG14 5FF,Admin
Food Standards Agency,Food Standards Agency,10/05/2012,Utilities,Security & Estates,E D F Energy,143,"25,610.96",PO 407776 ELECTRICITY BILL 1/4/12 TO 30/4/12,EX1 3UT,Admin
Food Standards Agency,Food Standards Agency,10/05/2012,Utilities,Security & Estates,E D F Energy,143,"5,122.19",PO 407776 ELECTRICITY BILL 1/4/12 TO 30/4/12,EX1 3UT,Admin
Food Standards Agency,Food Standards Agency,11/05/2012,Project Programme expenditure,Delivery,London Borough of Tower Hamlets,83942688,"26,925.50",PO 407841 50% OF TOTAL OLYMPIC GRANT FUNDING,E2 0PG,Programme
Food Standards Agency,Food Standards Agency,11/05/2012,Project Programme expenditure,Delivery,Newcastle City Council,1.80001E+12,"27,281.00",PO 407842 INITIAL 50% GRANT FOR OLYMPIC SCHEMES,NE1 8PB,Programme
Food Standards Agency,Food Standards Agency,11/05/2012,Project Programme expenditure,Delivery,Southwark Council.,10005821342,"29,023.75",PO 407837 OLYMPIC GRANT FUNDING SCH,SE16 2LS,Programme
Food Standards Agency,Food Standards Agency,11/05/2012,Project Programme expenditure,Delivery,Williams Lea Ltd,FSAWE12040007,"16,511.85",PO 407243 DIARY REFILL PACK/CHILDMINDER PACKS,W2 6LG,Programme
Food Standards Agency,Food Standards Agency,11/05/2012,Project Programme expenditure,Delivery,Williams Lea Ltd,FSAWE12040007,"10,157.40",PO 407243 DIARY REFILL PACK/CHILDMINDER PACKS,W2 6LG,Programme
Food Standards Agency,Food Standards Agency,15/05/2012,Travel UK ,Region 1 Scotland - Cluster 13,Capita Business Travel Ltd,LI402702,32.4,CONSOLIDATED INVOICE 16/4/12 TO 30/4/12,DE21 6BF,Programme
Food Standards Agency,Food Standards Agency,15/05/2012,Travel UK ,Region 1 Scotland - Cluster 15,Capita Business Travel Ltd,LI402702,259.4,CONSOLIDATED INVOICE 16/4/12 TO 30/4/12,DE21 6BF,Programme
Food Standards Agency,Food Standards Agency,15/05/2012,Travel UK ,Region 2 Wales - Cluster 23,Capita Business Travel Ltd,LI402702,239.4,CONSOLIDATED INVOICE 16/4/12 TO 30/4/12,DE21 6BF,Programme
Food Standards Agency,Food Standards Agency,15/05/2012,Travel UK ,Region 3 North West England - Cluster 35,Capita Business Travel Ltd,LI402702,98.4,CONSOLIDATED INVOICE 16/4/12 TO 30/4/12,DE21 6BF,Programme
Food Standards Agency,Food Standards Agency,15/05/2012,Travel UK ,Region 3 North West England - Cluster 36,Capita Business Travel Ltd,LI402702,97.9,CONSOLIDATED INVOICE 16/4/12 TO 30/4/12,DE21 6BF,Programme
Food Standards Agency,Food Standards Agency,15/05/2012,Travel UK ,Region 4 North East England - Cluster 47,Capita Business Travel Ltd,LI402702,178.4,CONSOLIDATED INVOICE 16/4/12 TO 30/4/12,DE21 6BF,Programme
Food Standards Agency,Food Standards Agency,15/05/2012,Travel UK ,Region 4 North East England - Cluster 48,Capita Business Travel Ltd,LI402702,109.9,CONSOLIDATED INVOICE 16/4/12 TO 30/4/12,DE21 6BF,Programme
Food Standards Agency,Food Standards Agency,15/05/2012,Travel UK ,Region 5 South West England - Cluster 54,Capita Business Travel Ltd,LI402702,259.8,CONSOLIDATED INVOICE 16/4/12 TO 30/4/12,DE21 6BF,Programme
Food Standards Agency,Food Standards Agency,15/05/2012,Travel UK ,Region 5 South West England - Cluster 55,Capita Business Travel Ltd,LI402702,58.5,CONSOLIDATED INVOICE 16/4/12 TO 30/4/12,DE21 6BF,Programme
Food Standards Agency,Food Standards Agency,15/05/2012,Travel UK ,Region 6 South East England - Cluster 62,Capita Business Travel Ltd,LI402702,113.2,CONSOLIDATED INVOICE 16/4/12 TO 30/4/12,DE21 6BF,Programme
Food Standards Agency,Food Standards Agency,15/05/2012,Travel UK ,Region 6 South East England - Cluster 63,Capita Business Travel Ltd,LI402702,108.5,CONSOLIDATED INVOICE 16/4/12 TO 30/4/12,DE21 6BF,Programme
Food Standards Agency,Food Standards Agency,15/05/2012,Travel UK ,Region 6 South East England - Cluster 64,Capita Business Travel Ltd,LI402702,91.6,CONSOLIDATED INVOICE 16/4/12 TO 30/4/12,DE21 6BF,Programme
Food Standards Agency,Food Standards Agency,15/05/2012,Travel UK ,Region 6 South East England - Cluster 66,Capita Business Travel Ltd,LI402702,79.4,CONSOLIDATED INVOICE 16/4/12 TO 30/4/12,DE21 6BF,Programme
Food Standards Agency,Food Standards Agency,15/05/2012,Travel UK ,Chief Executive & Private Office,Capita Business Travel Ltd,LI402702,805.04,CONSOLIDATED INVOICE 16/4/12 TO 30/4/12,DE21 6BF,Admin
Food Standards Agency,Food Standards Agency,15/05/2012,International Travel,Chief Executive & Private Office,Capita Business Travel Ltd,LI402702,"1,259.10",CONSOLIDATED INVOICE 16/4/12 TO 30/4/12,DE21 6BF,Admin
Food Standards Agency,Food Standards Agency,15/05/2012,Travel UK ,Chair & Deputy Chair,Capita Business Travel Ltd,LI402702,510.87,CONSOLIDATED INVOICE 16/4/12 TO 30/4/12,DE21 6BF,Admin
Food Standards Agency,Food Standards Agency,15/05/2012,Travel UK ,FSA Board,Capita Business Travel Ltd,LI402702,492.72,CONSOLIDATED INVOICE 16/4/12 TO 30/4/12,DE21 6BF,Admin
Food Standards Agency,Food Standards Agency,15/05/2012,Travel UK ,Legal Branch A,Capita Business Travel Ltd,LI402702,315.95,CONSOLIDATED INVOICE 16/4/12 TO 30/4/12,DE21 6BF,Admin
Food Standards Agency,Food Standards Agency,15/05/2012,Travel UK ,Investigations,Capita Business Travel Ltd,LI402702,31.4,CONSOLIDATED INVOICE 16/4/12 TO 30/4/12,DE21 6BF,Admin
Food Standards Agency,Food Standards Agency,15/05/2012,Car hire expenses (short term),Investigations,Capita Business Travel Ltd,LI402702,159.97,CONSOLIDATED INVOICE 16/4/12 TO 30/4/12,DE21 6BF,Admin
Food Standards Agency,Food Standards Agency,15/05/2012,Travel UK ,Chief Scientist,Capita Business Travel Ltd,LI402702,165.15,CONSOLIDATED INVOICE 16/4/12 TO 30/4/12,DE21 6BF,Admin
Food Standards Agency,Food Standards Agency,15/05/2012,International Travel,Chief Scientist,Capita Business Travel Ltd,LI402702,416.25,CONSOLIDATED INVOICE 16/4/12 TO 30/4/12,DE21 6BF,Admin
Food Standards Agency,Food Standards Agency,15/05/2012,Travel UK ,Analysis & Research Branch,Capita Business Travel Ltd,LI402702,303.3,CONSOLIDATED INVOICE 16/4/12 TO 30/4/12,DE21 6BF,Admin
Food Standards Agency,Food Standards Agency,15/05/2012,Project Programme expenditure,Comms Directors Office,L B I Ltd,301420954,"33,123.69",PO 403438 SUPPORT & MAINTENANCE RETAINER MARCH 2012,E1 6RU,Programme
Food Standards Agency,Food Standards Agency,15/05/2012,Project Programme expenditure,Comms Directors Office,L B I Ltd,301420954,"6,624.74",PO 403438 SUPPORT & MAINTENANCE RETAINER MARCH 2012,E1 6RU,Programme
Food Standards Agency,Food Standards Agency,15/05/2012,Travel UK ,Comms Directors Office,Capita Business Travel Ltd,LI402702,"2,173.24",CONSOLIDATED INVOICE 16/4/12 TO 30/4/12,DE21 6BF,Admin
Food Standards Agency,Food Standards Agency,15/05/2012,Travel UK ,Business Continuity,Capita Business Travel Ltd,LI402702,129.9,CONSOLIDATED INVOICE 16/4/12 TO 30/4/12,DE21 6BF,Programme
Food Standards Agency,Food Standards Agency,15/05/2012,Travel UK ,Approvals & Veterinary Advice,Capita Business Travel Ltd,LI402702,"2,343.79",CONSOLIDATED INVOICE 16/4/12 TO 30/4/12,DE21 6BF,Programme
Food Standards Agency,Food Standards Agency,15/05/2012,Travel UK ,LAALD HoD & Support,Capita Business Travel Ltd,LI402702,"2,672.10",CONSOLIDATED INVOICE 16/4/12 TO 30/4/12,DE21 6BF,Admin
Food Standards Agency,Food Standards Agency,15/05/2012,Travel UK ,Incidents & Food Fraud,Capita Business Travel Ltd,LI402702,140.75,CONSOLIDATED INVOICE 16/4/12 TO 30/4/12,DE21 6BF,Admin
Food Standards Agency,Food Standards Agency,15/05/2012,Travel UK ,Delivery,Capita Business Travel Ltd,LI402702,"3,674.51",CONSOLIDATED INVOICE 16/4/12 TO 30/4/12,DE21 6BF,Admin
Food Standards Agency,Food Standards Agency,15/05/2012,Travel UK ,Enforcement Policy,Capita Business Travel Ltd,LI402702,191.3,CONSOLIDATED INVOICE 16/4/12 TO 30/4/12,DE21 6BF,Admin
Food Standards Agency,Food Standards Agency,15/05/2012,Travel UK ,Official Controls & Enforcement Strategy,Capita Business Travel Ltd,LI402702,133.8,CONSOLIDATED INVOICE 16/4/12 TO 30/4/12,DE21 6BF,Admin
Food Standards Agency,Food Standards Agency,15/05/2012,Travel UK ,Operational Delivery,Capita Business Travel Ltd,LI402702,"3,886.85",CONSOLIDATED INVOICE 16/4/12 TO 30/4/12,DE21 6BF,Programme
Food Standards Agency,Food Standards Agency,15/05/2012,Car hire expenses (short term),Operational Delivery,Capita Business Travel Ltd,LI402702,410.67,CONSOLIDATED INVOICE 16/4/12 TO 30/4/12,DE21 6BF,Programme
Food Standards Agency,Food Standards Agency,15/05/2012,Travel UK ,Wine Standards,Capita Business Travel Ltd,LI402702,111.8,CONSOLIDATED INVOICE 16/4/12 TO 30/4/12,DE21 6BF,Programme
Food Standards Agency,Food Standards Agency,15/05/2012,Travel UK ,Central Operations Hub,Capita Business Travel Ltd,LI402702,"1,339.60",CONSOLIDATED INVOICE 16/4/12 TO 30/4/12,DE21 6BF,Programme
Food Standards Agency,Food Standards Agency,15/05/2012,Travel UK ,Chemical Risk Assessment Unit,Capita Business Travel Ltd,LI402702,119.6,CONSOLIDATED INVOICE 16/4/12 TO 30/4/12,DE21 6BF,Programme
Food Standards Agency,Food Standards Agency,15/05/2012,International Travel,Chemical Risk Assessment Unit,Capita Business Travel Ltd,LI402702,235.9,CONSOLIDATED INVOICE 16/4/12 TO 30/4/12,DE21 6BF,Admin
Food Standards Agency,Food Standards Agency,15/05/2012,Travel UK ,Contaminants Policy & Strategy Unit,Capita Business Travel Ltd,LI402702,163.08,CONSOLIDATED INVOICE 16/4/12 TO 30/4/12,DE21 6BF,Admin
Food Standards Agency,Food Standards Agency,15/05/2012,International Travel,Contaminants Policy & Strategy Unit,Capita Business Travel Ltd,LI402702,264.75,CONSOLIDATED INVOICE 16/4/12 TO 30/4/12,DE21 6BF,Admin
Food Standards Agency,Food Standards Agency,15/05/2012,International Travel,Novel Food Unit,Capita Business Travel Ltd,LI402702,727.85,CONSOLIDATED INVOICE 16/4/12 TO 30/4/12,DE21 6BF,Admin
Food Standards Agency,Food Standards Agency,15/05/2012,Travel UK ,Hygiene & Microbiology Division HoD,Capita Business Travel Ltd,LI402702,305.82,CONSOLIDATED INVOICE 16/4/12 TO 30/4/12,DE21 6BF,Admin
Food Standards Agency,Food Standards Agency,15/05/2012,International Travel,Hygiene & Microbiology Division HoD,Capita Business Travel Ltd,LI402702,489.41,CONSOLIDATED INVOICE 16/4/12 TO 30/4/12,DE21 6BF,Admin
Food Standards Agency,Food Standards Agency,15/05/2012,Travel UK ,Microbiological Food Safety Branch,Capita Business Travel Ltd,LI402702,44.3,CONSOLIDATED INVOICE 16/4/12 TO 30/4/12,DE21 6BF,Admin
Food Standards Agency,Food Standards Agency,15/05/2012,Travel UK ,Food Production Branch,Capita Business Travel Ltd,LI402702,88.6,CONSOLIDATED INVOICE 16/4/12 TO 30/4/12,DE21 6BF,Admin
Food Standards Agency,Food Standards Agency,15/05/2012,Travel UK ,Food Hygiene Policy Branch,Capita Business Travel Ltd,LI402702,102.6,CONSOLIDATED INVOICE 16/4/12 TO 30/4/12,DE21 6BF,Admin
Food Standards Agency,Food Standards Agency,15/05/2012,International Travel,Food Hygiene Policy Branch,Capita Business Travel Ltd,LI402702,158.75,CONSOLIDATED INVOICE 16/4/12 TO 30/4/12,DE21 6BF,Admin
Food Standards Agency,Food Standards Agency,15/05/2012,Travel UK ,Foodborne Diseases Branch,Capita Business Travel Ltd,LI402702,45,CONSOLIDATED INVOICE 16/4/12 TO 30/4/12,DE21 6BF,Admin
Food Standards Agency,Food Standards Agency,15/05/2012,Travel UK ,Animal Feed Branch,Capita Business Travel Ltd,LI402702,71.6,CONSOLIDATED INVOICE 16/4/12 TO 30/4/12,DE21 6BF,Admin
Food Standards Agency,Food Standards Agency,15/05/2012,International Travel,Animal Feed Branch,Capita Business Travel Ltd,LI402702,148.75,CONSOLIDATED INVOICE 16/4/12 TO 30/4/12,DE21 6BF,Admin
Food Standards Agency,Food Standards Agency,15/05/2012,Project Programme expenditure,Animal Feed Branch,Capita Business Travel Ltd,LI402702,194.71,CONSOLIDATED INVOICE 16/4/12 TO 30/4/12,DE21 6BF,Programme
Food Standards Agency,Food Standards Agency,15/05/2012,Travel UK ,Allergens,Capita Business Travel Ltd,LI402702,219.53,CONSOLIDATED INVOICE 16/4/12 TO 30/4/12,DE21 6BF,Admin
Food Standards Agency,Food Standards Agency,15/05/2012,International Travel,Additives,Capita Business Travel Ltd,LI402702,213.75,CONSOLIDATED INVOICE 16/4/12 TO 30/4/12,DE21 6BF,Admin
Food Standards Agency,Food Standards Agency,15/05/2012,Travel UK ,Food Policy Strategy HoD,Capita Business Travel Ltd,LI402702,499.7,CONSOLIDATED INVOICE 16/4/12 TO 30/4/12,DE21 6BF,Admin
Food Standards Agency,Food Standards Agency,15/05/2012,Travel UK ,Planning and Performance,Capita Business Travel Ltd,LI402702,"2,037.05",CONSOLIDATED INVOICE 16/4/12 TO 30/4/12,DE21 6BF,Admin
Food Standards Agency,Food Standards Agency,15/05/2012,Travel UK ,Food Policy Private Office,Capita Business Travel Ltd,LI402702,687.86,CONSOLIDATED INVOICE 16/4/12 TO 30/4/12,DE21 6BF,Admin
Food Standards Agency,Food Standards Agency,15/05/2012,International Travel,Food Policy Private Office,Capita Business Travel Ltd,LI402702,504.75,CONSOLIDATED INVOICE 16/4/12 TO 30/4/12,DE21 6BF,Admin
Food Standards Agency,Food Standards Agency,15/05/2012,Civil service pension administration,Finance Director & Branch,London Pensions Fund Authority,01-Apr-12,"138,333.37",PO 408024 RGFS/ACCOUNT LONDON SITE 1,EC3N 4LP,Admin
Food Standards Agency,Food Standards Agency,15/05/2012,Civil service pension administration,Finance Director & Branch,London Pensions Fund Authority,01-May-12,"138,333.33",PO 408024 RGFS/ACCOUINT 595,EC3N 4LP,Admin
Food Standards Agency,Food Standards Agency,15/05/2012,Travel UK ,Finance Director & Branch,Capita Business Travel Ltd,LI402702,"1,480.30",CONSOLIDATED INVOICE 16/4/12 TO 30/4/12,DE21 6BF,Admin
Food Standards Agency,Food Standards Agency,15/05/2012,Travel UK ,HR,Capita Business Travel Ltd,LI402702,"4,499.40",CONSOLIDATED INVOICE 16/4/12 TO 30/4/12,DE21 6BF,Admin
Food Standards Agency,Food Standards Agency,15/05/2012,Car hire expenses (short term),HR,Capita Business Travel Ltd,LI402702,123.14,CONSOLIDATED INVOICE 16/4/12 TO 30/4/12,DE21 6BF,Admin
Food Standards Agency,Food Standards Agency,15/05/2012,Travel UK ,Procurement,Capita Business Travel Ltd,LI402702,"2,186.03",CONSOLIDATED INVOICE 16/4/12 TO 30/4/12,DE21 6BF,Admin
Food Standards Agency,Food Standards Agency,15/05/2012,Subsistence UK,Procurement,Capita Business Travel Ltd,LI402702,"9,354.49",CONSOLIDATED INVOICE 16/4/12 TO 30/4/12,DE21 6BF,Admin
Food Standards Agency,Food Standards Agency,15/05/2012,Travel UK ,IT HoD,Capita Business Travel Ltd,LI402702,521.1,CONSOLIDATED INVOICE 16/4/12 TO 30/4/12,DE21 6BF,Admin
Food Standards Agency,Food Standards Agency,15/05/2012,Service charges,Security & Estates,G4s Integrated Services (Uk) Ltd,M7238,"26,929.85",PO 407801 SERVICE PROVISION ON CONTACT REF PAU229 MONTH OF APRIL BREAKDOWN,S81 7QF,Admin
Food Standards Agency,Food Standards Agency,15/05/2012,Service charges,Security & Estates,G4s Integrated Services (Uk) Ltd,M7238,"15,613.20",PO 407801 SERVICE PROVISION ON CONTACT REF PAU229 MONTH OF APRIL BREAKDOWN,S81 7QF,Admin
Food Standards Agency,Food Standards Agency,15/05/2012,Service charges,Security & Estates,G4s Integrated Services (Uk) Ltd,M7238,"2,842.41",PO 407801 SERVICE PROVISION ON CONTACT REF PAU229 MONTH OF APRIL BREAKDOWN,S81 7QF,Admin
Food Standards Agency,Food Standards Agency,15/05/2012,Office machinery: hire,Security & Estates,G4s Integrated Services (Uk) Ltd,M7238,"3,244.00",PO 407801 SERVICE PROVISION ON CONTACT REF PAU229 MONTH OF APRIL BREAKDOWN,S81 7QF,Admin
Food Standards Agency,Food Standards Agency,15/05/2012,Security,Security & Estates,G4s Integrated Services (Uk) Ltd,M7238,"18,167.70",PO 407801 SERVICE PROVISION ON CONTACT REF PAU229 MONTH OF APRIL BREAKDOWN,S81 7QF,Admin
Food Standards Agency,Food Standards Agency,15/05/2012,Travel UK ,IT Information & Knowledge Management,Capita Business Travel Ltd,LI402702,298.6,CONSOLIDATED INVOICE 16/4/12 TO 30/4/12,DE21 6BF,Admin
Food Standards Agency,Food Standards Agency,15/05/2012,Travel UK ,Internal Audit,Capita Business Travel Ltd,LI402702,798.9,CONSOLIDATED INVOICE 16/4/12 TO 30/4/12,DE21 6BF,Admin
Food Standards Agency,Food Standards Agency,15/05/2012,Travel UK ,Field OPS - Region 1 Scotland,Capita Business Travel Ltd,LI402702,292.33,CONSOLIDATED INVOICE 16/4/12 TO 30/4/12,DE21 6BF,Programme
Food Standards Agency,Food Standards Agency,15/05/2012,Travel UK ,Field OPS - Region 2 Wales,Capita Business Travel Ltd,LI402702,39.6,CONSOLIDATED INVOICE 16/4/12 TO 30/4/12,DE21 6BF,Programme
Food Standards Agency,Food Standards Agency,15/05/2012,Travel UK ,Field OPS - Region 3 North West England,Capita Business Travel Ltd,LI402702,56.5,CONSOLIDATED INVOICE 16/4/12 TO 30/4/12,DE21 6BF,Programme
Food Standards Agency,Food Standards Agency,15/05/2012,Travel UK ,Field OPS - Region 4 North East England,Capita Business Travel Ltd,LI402702,59.5,CONSOLIDATED INVOICE 16/4/12 TO 30/4/12,DE21 6BF,Programme
Food Standards Agency,Food Standards Agency,15/05/2012,Travel UK ,Field OPS - Region 5 South West England,Capita Business Travel Ltd,LI402702,631.3,CONSOLIDATED INVOICE 16/4/12 TO 30/4/12,DE21 6BF,Programme
Food Standards Agency,Food Standards Agency,15/05/2012,Travel UK ,Field OPS - Region 6 South East England,Capita Business Travel Ltd,LI402702,650.9,CONSOLIDATED INVOICE 16/4/12 TO 30/4/12,DE21 6BF,Programme
Food Standards Agency,Food Standards Agency,25/05/2012,Project Programme expenditure,Delivery,London Borough Of Camden,446487589,"34,531.00",PO 407836 OLYMPIC GRANT FUNDING 1ST PAYMENT,WC1H 8NG,Programme
Food Standards Agency,Food Standards Agency,25/05/2012,IT equipment maintenance,IT Service Delivery,Capita Secure Information Solutions Ltd,POI017581,"201,855.00",PO 407809 FEB 2012 SERVICES AND SUPPORT CONTRACT FSA-191,SN14 0TW,Admin
Food Standards Agency,Food Standards Agency,25/05/2012,IT equipment maintenance,IT Service Delivery,Capita Secure Information Solutions Ltd,POI017581,"40,371.00",PO 407809 FEB 2012 SERVICES AND SUPPORT CONTRACT FSA-191,SN14 0TW,Admin
Food Standards Agency,Food Standards Agency,25/05/2012,IT equipment maintenance,IT Service Delivery,Capita Secure Information Solutions Ltd,POI017582,"215,440.00",PO 407940 MARCH 2012 SERVICES AND SUPPORT CONTRACT FSA-191,SN14 0TW,Admin
Food Standards Agency,Food Standards Agency,25/05/2012,IT equipment maintenance,IT Service Delivery,Capita Secure Information Solutions Ltd,POI017582,"43,088.00",PO 407940 MARCH 2012 SERVICES AND SUPPORT CONTRACT FSA-191,SN14 0TW,Admin
Food Standards Agency,Food Standards Agency,25/05/2012,IT equipment maintenance,IT Service Delivery,Capita Secure Information Solutions Ltd,POI017583,"263,675.00",PO 407777 APR 2012 SERVICES AND SUPPORT CONTRACT FSA-191,SN14 0TW,Admin
Food Standards Agency,Food Standards Agency,29/05/2012,Programme Evidence & Research Expenditure,Food Production Branch,Moredun Research Institute,12296,"13,904.00",PO 405446 DEVELOPMENT & FIELD EVALUATION OF LATERAL FLOW TEST,EH26 0PZ,Programme
Food Standards Agency,Food Standards Agency,29/05/2012,Programme Evidence & Research Expenditure,Food Production Branch,Moredun Research Institute,12296,"10,428.00",PO 405446 DEVELOPMENT & FIELD EVALUATION OF LATERAL FLOW TEST,EH26 0PZ,Programme
Food Standards Agency,Food Standards Agency,29/05/2012,Programme Evidence & Research Expenditure,Food Production Branch,Moredun Research Institute,12296,"7,452.00",PO 405446 DEVELOPMENT & FIELD EVALUATION OF LATERAL FLOW TEST,EH26 0PZ,Programme
Food Standards Agency,Food Standards Agency,31/05/2012,Travel UK ,Region 1 Scotland - Cluster 11,Capita Business Travel Ltd,LI408915,356.71,CONSOLIDATED INVOICE 1/5/12 TO 15/5/12,DE21 6BF,Programme
Food Standards Agency,Food Standards Agency,31/05/2012,Subsistence UK,Region 1 Scotland - Cluster 13,Booking Services International Ltd,223780621,159,HOTEL CHARGES 1/5/12 TO 15/5/12,TA1 2PF,Programme
Food Standards Agency,Food Standards Agency,31/05/2012,Conference and meeting facilities including accommodation,Region 1 Scotland - Cluster 15,Booking Services International Ltd,223780621,189,HOTEL CHARGES 1/5/12 TO 15/5/12,TA1 2PF,Programme
Food Standards Agency,Food Standards Agency,31/05/2012,Subsistence UK,Region 2 Wales - Cluster 22,Booking Services International Ltd,223780621,73,HOTEL CHARGES 1/5/12 TO 15/5/12,TA1 2PF,Programme
Food Standards Agency,Food Standards Agency,31/05/2012,Travel UK ,Region 3 North West England - Cluster 31,Capita Business Travel Ltd,LI408915,112.9,CONSOLIDATED INVOICE 1/5/12 TO 15/5/12,DE21 6BF,Programme
Food Standards Agency,Food Standards Agency,31/05/2012,Car hire expenses (short term),Region 3 North West England - Cluster 32,Capita Business Travel Ltd,LI408915,189.52,CONSOLIDATED INVOICE 1/5/12 TO 15/5/12,DE21 6BF,Programme
Food Standards Agency,Food Standards Agency,31/05/2012,Subsistence UK,Region 3 North West England - Cluster 34,Booking Services International Ltd,223780621,140,HOTEL CHARGES 1/5/12 TO 15/5/12,TA1 2PF,Programme
Food Standards Agency,Food Standards Agency,31/05/2012,Subsistence UK,Region 3 North West England - Cluster 36,Booking Services International Ltd,223780621,140,HOTEL CHARGES 1/5/12 TO 15/5/12,TA1 2PF,Programme
Food Standards Agency,Food Standards Agency,31/05/2012,Travel UK ,Region 4 North East England - Cluster 41,Capita Business Travel Ltd,LI408915,200.7,CONSOLIDATED INVOICE 1/5/12 TO 15/5/12,DE21 6BF,Programme
Food Standards Agency,Food Standards Agency,31/05/2012,International Travel,Region 4 North East England - Cluster 41,Capita Business Travel Ltd,LI408915,"3,202.36",CONSOLIDATED INVOICE 1/5/12 TO 15/5/12,DE21 6BF,Programme
Food Standards Agency,Food Standards Agency,31/05/2012,Travel UK ,Region 4 North East England - Cluster 45,Capita Business Travel Ltd,LI408915,151.9,CONSOLIDATED INVOICE 1/5/12 TO 15/5/12,DE21 6BF,Programme
Food Standards Agency,Food Standards Agency,31/05/2012,Travel UK ,Region 5 South West England - Cluster 51,Capita Business Travel Ltd,LI408915,177.4,CONSOLIDATED INVOICE 1/5/12 TO 15/5/12,DE21 6BF,Programme
Food Standards Agency,Food Standards Agency,31/05/2012,Travel UK ,Region 5 South West England - Cluster 52,Capita Business Travel Ltd,LI408915,136.9,CONSOLIDATED INVOICE 1/5/12 TO 15/5/12,DE21 6BF,Programme
Food Standards Agency,Food Standards Agency,31/05/2012,Subsistence UK,Region 5 South West England - Cluster 52,Booking Services International Ltd,223780621,200,HOTEL CHARGES 1/5/12 TO 15/5/12,TA1 2PF,Programme
Food Standards Agency,Food Standards Agency,31/05/2012,Travel UK ,Region 5 South West England - Cluster 55,Capita Business Travel Ltd,LI408915,58,CONSOLIDATED INVOICE 1/5/12 TO 15/5/12,DE21 6BF,Programme
Food Standards Agency,Food Standards Agency,31/05/2012,Subsistence UK,Region 5 South West England - Cluster 55,Booking Services International Ltd,223780621,460,HOTEL CHARGES 1/5/12 TO 15/5/12,TA1 2PF,Programme
Food Standards Agency,Food Standards Agency,31/05/2012,Car hire expenses (short term),Region 5 South West England - Cluster 56,Capita Business Travel Ltd,LI408915,245.05,CONSOLIDATED INVOICE 1/5/12 TO 15/5/12,DE21 6BF,Programme
Food Standards Agency,Food Standards Agency,31/05/2012,Subsistence UK,Region 5 South West England - Cluster 56,Booking Services International Ltd,223780621,210,HOTEL CHARGES 1/5/12 TO 15/5/12,TA1 2PF,Programme
Food Standards Agency,Food Standards Agency,31/05/2012,Travel UK ,Region 5 South West England - Cluster 57,Capita Business Travel Ltd,LI408915,498.3,CONSOLIDATED INVOICE 1/5/12 TO 15/5/12,DE21 6BF,Programme
Food Standards Agency,Food Standards Agency,31/05/2012,Car hire expenses (short term),Region 5 South West England - Cluster 57,Capita Business Travel Ltd,LI408915,221.95,CONSOLIDATED INVOICE 1/5/12 TO 15/5/12,DE21 6BF,Programme
Food Standards Agency,Food Standards Agency,31/05/2012,Subsistence UK,Region 5 South West England - Cluster 57,Booking Services International Ltd,223780621,210,HOTEL CHARGES 1/5/12 TO 15/5/12,TA1 2PF,Programme
Food Standards Agency,Food Standards Agency,31/05/2012,Travel UK ,Region 6 South East England - Cluster 62,Capita Business Travel Ltd,LI408915,502,CONSOLIDATED INVOICE 1/5/12 TO 15/5/12,DE21 6BF,Programme
Food Standards Agency,Food Standards Agency,31/05/2012,Subsistence UK,Region 6 South East England - Cluster 62,Booking Services International Ltd,223780621,78,HOTEL CHARGES 1/5/12 TO 15/5/12,TA1 2PF,Programme
Food Standards Agency,Food Standards Agency,31/05/2012,Travel UK ,Region 6 South East England - Cluster 63,Capita Business Travel Ltd,LI408915,105.7,CONSOLIDATED INVOICE 1/5/12 TO 15/5/12,DE21 6BF,Programme
Food Standards Agency,Food Standards Agency,31/05/2012,Travel UK ,Region 6 South East England - Cluster 64,Capita Business Travel Ltd,LI408915,216.4,CONSOLIDATED INVOICE 1/5/12 TO 15/5/12,DE21 6BF,Programme
Food Standards Agency,Food Standards Agency,31/05/2012,Travel UK ,Region 6 South East England - Cluster 65,Capita Business Travel Ltd,LI408915,168.2,CONSOLIDATED INVOICE 1/5/12 TO 15/5/12,DE21 6BF,Programme
Food Standards Agency,Food Standards Agency,31/05/2012,Travel UK ,Region 6 South East England - Cluster 66,Capita Business Travel Ltd,LI408915,-0.3,CONSOLIDATED INVOICE 1/5/12 TO 15/5/12,DE21 6BF,Programme
Food Standards Agency,Food Standards Agency,31/05/2012,Travel UK ,Chief Executive & Private Office,Capita Business Travel Ltd,LI408915,359.55,CONSOLIDATED INVOICE 1/5/12 TO 15/5/12,DE21 6BF,Admin
Food Standards Agency,Food Standards Agency,31/05/2012,International Travel,Chief Executive & Private Office,Capita Business Travel Ltd,LI408915,-263,CONSOLIDATED INVOICE 1/5/12 TO 15/5/12,DE21 6BF,Admin
Food Standards Agency,Food Standards Agency,31/05/2012,International Travel,Chief Executive & Private Office,Capita Business Travel Ltd,LI408915,"8,599.88",CONSOLIDATED INVOICE 1/5/12 TO 15/5/12,DE21 6BF,Admin
Food Standards Agency,Food Standards Agency,31/05/2012,Travel UK ,Chair & Deputy Chair,Capita Business Travel Ltd,LI408915,347.2,CONSOLIDATED INVOICE 1/5/12 TO 15/5/12,DE21 6BF,Admin
Food Standards Agency,Food Standards Agency,31/05/2012,Subsistence UK,Chair & Deputy Chair,Booking Services International Ltd,223780621,334.6,HOTEL CHARGES 1/5/12 TO 15/5/12,TA1 2PF,Admin
Food Standards Agency,Food Standards Agency,31/05/2012,Travel UK ,FSA Board,Capita Business Travel Ltd,LI408915,"1,262.48",CONSOLIDATED INVOICE 1/5/12 TO 15/5/12,DE21 6BF,Admin
Food Standards Agency,Food Standards Agency,31/05/2012,Subsistence UK,FSA Board,Booking Services International Ltd,223780621,228,HOTEL CHARGES 1/5/12 TO 15/5/12,TA1 2PF,Admin
Food Standards Agency,Food Standards Agency,31/05/2012,Subsistence UK,Legal Branch A,Booking Services International Ltd,223780621,221.2,HOTEL CHARGES 1/5/12 TO 15/5/12,TA1 2PF,Admin
Food Standards Agency,Food Standards Agency,31/05/2012,Travel UK ,Investigations,Capita Business Travel Ltd,LI408915,773.34,CONSOLIDATED INVOICE 1/5/12 TO 15/5/12,DE21 6BF,Admin
Food Standards Agency,Food Standards Agency,31/05/2012,Car hire expenses (short term),Investigations,Capita Business Travel Ltd,LI408915,160.68,CONSOLIDATED INVOICE 1/5/12 TO 15/5/12,DE21 6BF,Admin
Food Standards Agency,Food Standards Agency,31/05/2012,Subsistence UK,Investigations,Booking Services International Ltd,223780621,386.4,HOTEL CHARGES 1/5/12 TO 15/5/12,TA1 2PF,Admin
Food Standards Agency,Food Standards Agency,31/05/2012,Hospitality,Investigations,Booking Services International Ltd,223780621,84,HOTEL CHARGES 1/5/12 TO 15/5/12,TA1 2PF,Admin
Food Standards Agency,Food Standards Agency,31/05/2012,International Travel,Chief Scientist,Capita Business Travel Ltd,LI408915,148.75,CONSOLIDATED INVOICE 1/5/12 TO 15/5/12,DE21 6BF,Admin
Food Standards Agency,Food Standards Agency,31/05/2012,Travel UK ,Analysis & Research Branch,Capita Business Travel Ltd,LI408915,57.9,CONSOLIDATED INVOICE 1/5/12 TO 15/5/12,DE21 6BF,Admin
Food Standards Agency,Food Standards Agency,31/05/2012,Subsistence UK,Analysis & Research Branch,Booking Services International Ltd,223780621,99,HOTEL CHARGES 1/5/12 TO 15/5/12,TA1 2PF,Admin
Food Standards Agency,Food Standards Agency,31/05/2012,Travel UK ,Comms Directors Office,Capita Business Travel Ltd,LI408915,"1,130.27",CONSOLIDATED INVOICE 1/5/12 TO 15/5/12,DE21 6BF,Admin
Food Standards Agency,Food Standards Agency,31/05/2012,Car hire expenses (short term),Comms Directors Office,Capita Business Travel Ltd,LI408915,336.41,CONSOLIDATED INVOICE 1/5/12 TO 15/5/12,DE21 6BF,Admin
Food Standards Agency,Food Standards Agency,31/05/2012,Subsistence UK,Comms Directors Office,Booking Services International Ltd,223780621,611.8,HOTEL CHARGES 1/5/12 TO 15/5/12,TA1 2PF,Admin
Food Standards Agency,Food Standards Agency,31/05/2012,Conference and meeting facilities including accommodation,Comms Directors Office,Booking Services International Ltd,223780621,"1,459.56",HOTEL CHARGES 1/5/12 TO 15/5/12,TA1 2PF,Admin
Food Standards Agency,Food Standards Agency,31/05/2012,Subsistence UK,Business Continuity,Booking Services International Ltd,223780621,233.1,HOTEL CHARGES 1/5/12 TO 15/5/12,TA1 2PF,Programme
Food Standards Agency,Food Standards Agency,31/05/2012,Travel UK ,FSA Operations Director & Support,Capita Business Travel Ltd,LI408915,45.9,CONSOLIDATED INVOICE 1/5/12 TO 15/5/12,DE21 6BF,Programme
Food Standards Agency,Food Standards Agency,31/05/2012,International Travel,FSA Operations Director & Support,Capita Business Travel Ltd,LI408915,198.25,CONSOLIDATED INVOICE 1/5/12 TO 15/5/12,DE21 6BF,Programme
Food Standards Agency,Food Standards Agency,31/05/2012,Subsistence UK,FSA Operations Director & Support,Booking Services International Ltd,223780621,71,HOTEL CHARGES 1/5/12 TO 15/5/12,TA1 2PF,Programme
Food Standards Agency,Food Standards Agency,31/05/2012,Travel UK ,Approvals & Veterinary Advice,Capita Business Travel Ltd,LI408915,"1,985.87",CONSOLIDATED INVOICE 1/5/12 TO 15/5/12,DE21 6BF,Programme
Food Standards Agency,Food Standards Agency,31/05/2012,International Travel,Approvals & Veterinary Advice,Capita Business Travel Ltd,LI408915,"2,480.36",CONSOLIDATED INVOICE 1/5/12 TO 15/5/12,DE21 6BF,Programme
Food Standards Agency,Food Standards Agency,31/05/2012,Car hire expenses (short term),Approvals & Veterinary Advice,Capita Business Travel Ltd,LI408915,213.33,CONSOLIDATED INVOICE 1/5/12 TO 15/5/12,DE21 6BF,Programme
Food Standards Agency,Food Standards Agency,31/05/2012,Subsistence UK,Approvals & Veterinary Advice,Booking Services International Ltd,223780621,"1,344.55",HOTEL CHARGES 1/5/12 TO 15/5/12,TA1 2PF,Programme
Food Standards Agency,Food Standards Agency,31/05/2012,Travel UK ,LAALD HoD & Support,Capita Business Travel Ltd,LI408915,"4,019.75",CONSOLIDATED INVOICE 1/5/12 TO 15/5/12,DE21 6BF,Admin
Food Standards Agency,Food Standards Agency,31/05/2012,Car hire expenses (short term),LAALD HoD & Support,Capita Business Travel Ltd,LI408915,309.79,CONSOLIDATED INVOICE 1/5/12 TO 15/5/12,DE21 6BF,Admin
Food Standards Agency,Food Standards Agency,31/05/2012,Subsistence UK,LAALD HoD & Support,Booking Services International Ltd,223780621,"1,799.20",HOTEL CHARGES 1/5/12 TO 15/5/12,TA1 2PF,Admin
Food Standards Agency,Food Standards Agency,31/05/2012,Travel UK ,Incidents & Food Fraud,Capita Business Travel Ltd,LI408915,922.63,CONSOLIDATED INVOICE 1/5/12 TO 15/5/12,DE21 6BF,Admin
Food Standards Agency,Food Standards Agency,31/05/2012,Travel UK ,Delivery,Capita Business Travel Ltd,LI408915,"2,511.88",CONSOLIDATED INVOICE 1/5/12 TO 15/5/12,DE21 6BF,Admin
Food Standards Agency,Food Standards Agency,31/05/2012,Car hire expenses (short term),Delivery,Capita Business Travel Ltd,LI408915,"3,778.80",CONSOLIDATED INVOICE 1/5/12 TO 15/5/12,DE21 6BF,Admin
Food Standards Agency,Food Standards Agency,31/05/2012,Subsistence UK,Delivery,Booking Services International Ltd,223780621,293,HOTEL CHARGES 1/5/12 TO 15/5/12,TA1 2PF,Admin
Food Standards Agency,Food Standards Agency,31/05/2012,Project Programme expenditure,Delivery,Booking Services International Ltd,223780621,255,HOTEL CHARGES 1/5/12 TO 15/5/12,TA1 2PF,Programme
Food Standards Agency,Food Standards Agency,31/05/2012,Programme Evidence & Research Expenditure,Delivery,Booking Services International Ltd,223780621,130,HOTEL CHARGES 1/5/12 TO 15/5/12,TA1 2PF,Programme
Food Standards Agency,Food Standards Agency,31/05/2012,Travel UK ,Enforcement Policy,Capita Business Travel Ltd,LI408915,36.6,CONSOLIDATED INVOICE 1/5/12 TO 15/5/12,DE21 6BF,Admin
Food Standards Agency,Food Standards Agency,31/05/2012,International Travel,Official Controls & Enforcement Strategy,Capita Business Travel Ltd,LI408915,264.75,CONSOLIDATED INVOICE 1/5/12 TO 15/5/12,DE21 6BF,Admin
Food Standards Agency,Food Standards Agency,31/05/2012,Subsistence UK,Official Controls & Enforcement Strategy,Booking Services International Ltd,223780621,61,HOTEL CHARGES 1/5/12 TO 15/5/12,TA1 2PF,Admin
Food Standards Agency,Food Standards Agency,31/05/2012,Travel UK ,Operational Delivery,Capita Business Travel Ltd,LI408915,"4,965.34",CONSOLIDATED INVOICE 1/5/12 TO 15/5/12,DE21 6BF,Programme
Food Standards Agency,Food Standards Agency,31/05/2012,International Travel,Operational Delivery,Capita Business Travel Ltd,LI408915,"3,261.10",CONSOLIDATED INVOICE 1/5/12 TO 15/5/12,DE21 6BF,Programme
Food Standards Agency,Food Standards Agency,31/05/2012,Postal charges,Operational Delivery,Capita Business Travel Ltd,LI408915,7,CONSOLIDATED INVOICE 1/5/12 TO 15/5/12,DE21 6BF,Programme
Food Standards Agency,Food Standards Agency,31/05/2012,Car hire expenses (short term),Operational Delivery,Capita Business Travel Ltd,LI408915,458.98,CONSOLIDATED INVOICE 1/5/12 TO 15/5/12,DE21 6BF,Programme
Food Standards Agency,Food Standards Agency,31/05/2012,Subsistence UK,Operational Delivery,Booking Services International Ltd,223780621,"3,971.04",HOTEL CHARGES 1/5/12 TO 15/5/12,TA1 2PF,Programme
Food Standards Agency,Food Standards Agency,31/05/2012,Conference and meeting facilities including accommodation,Operational Delivery,Booking Services International Ltd,223780621,386.1,HOTEL CHARGES 1/5/12 TO 15/5/12,TA1 2PF,Programme
Food Standards Agency,Food Standards Agency,31/05/2012,Travel UK ,Wine Standards,Capita Business Travel Ltd,LI408915,155.85,CONSOLIDATED INVOICE 1/5/12 TO 15/5/12,DE21 6BF,Programme
Food Standards Agency,Food Standards Agency,31/05/2012,Car hire expenses (short term),Wine Standards,Capita Business Travel Ltd,LI408915,117.58,CONSOLIDATED INVOICE 1/5/12 TO 15/5/12,DE21 6BF,Programme
Food Standards Agency,Food Standards Agency,31/05/2012,Subsistence UK,Wine Standards,Booking Services International Ltd,223780621,270,HOTEL CHARGES 1/5/12 TO 15/5/12,TA1 2PF,Programme
Food Standards Agency,Food Standards Agency,31/05/2012,Travel UK ,Central Operations Hub,Capita Business Travel Ltd,LI408915,"1,130.10",CONSOLIDATED INVOICE 1/5/12 TO 15/5/12,DE21 6BF,Programme
Food Standards Agency,Food Standards Agency,31/05/2012,Subsistence UK,Central Operations Hub,Booking Services International Ltd,223780621,"1,020.00",HOTEL CHARGES 1/5/12 TO 15/5/12,TA1 2PF,Programme
Food Standards Agency,Food Standards Agency,31/05/2012,Travel UK ,Chemical Risk Assessment Unit,Capita Business Travel Ltd,LI408915,363.7,CONSOLIDATED INVOICE 1/5/12 TO 15/5/12,DE21 6BF,Admin
Food Standards Agency,Food Standards Agency,31/05/2012,International Travel,Chemical Risk Assessment Unit,Capita Business Travel Ltd,LI408915,136.1,CONSOLIDATED INVOICE 1/5/12 TO 15/5/12,DE21 6BF,Admin
Food Standards Agency,Food Standards Agency,31/05/2012,Travel UK ,Contaminants Policy & Strategy Unit,Capita Business Travel Ltd,LI408915,255.59,CONSOLIDATED INVOICE 1/5/12 TO 15/5/12,DE21 6BF,Admin
Food Standards Agency,Food Standards Agency,31/05/2012,International Travel,Contaminants Policy & Strategy Unit,Capita Business Travel Ltd,LI408915,284.75,CONSOLIDATED INVOICE 1/5/12 TO 15/5/12,DE21 6BF,Admin
Food Standards Agency,Food Standards Agency,31/05/2012,Postal charges,Contaminants Policy & Strategy Unit,Capita Business Travel Ltd,LI408915,7,CONSOLIDATED INVOICE 1/5/12 TO 15/5/12,DE21 6BF,Admin
Food Standards Agency,Food Standards Agency,31/05/2012,Car hire expenses (short term),Contaminants Policy & Strategy Unit,Capita Business Travel Ltd,LI408915,68.77,CONSOLIDATED INVOICE 1/5/12 TO 15/5/12,DE21 6BF,Admin
Food Standards Agency,Food Standards Agency,31/05/2012,Subsistence UK,Contaminants Policy & Strategy Unit,Booking Services International Ltd,223780621,135,HOTEL CHARGES 1/5/12 TO 15/5/12,TA1 2PF,Admin
Food Standards Agency,Food Standards Agency,31/05/2012,Subsistence UK,Novel Food Unit,Booking Services International Ltd,223780621,590.4,HOTEL CHARGES 1/5/12 TO 15/5/12,TA1 2PF,Admin
Food Standards Agency,Food Standards Agency,31/05/2012,Travel UK ,Hygiene & Microbiology Division HoD,Capita Business Travel Ltd,LI408915,322.87,CONSOLIDATED INVOICE 1/5/12 TO 15/5/12,DE21 6BF,Admin
Food Standards Agency,Food Standards Agency,31/05/2012,International Travel,Hygiene & Microbiology Division HoD,Capita Business Travel Ltd,LI408915,189.5,CONSOLIDATED INVOICE 1/5/12 TO 15/5/12,DE21 6BF,Admin
Food Standards Agency,Food Standards Agency,31/05/2012,International Travel,Microbiological Food Safety Branch,Capita Business Travel Ltd,LI408915,180.71,CONSOLIDATED INVOICE 1/5/12 TO 15/5/12,DE21 6BF,Admin
Food Standards Agency,Food Standards Agency,31/05/2012,Travel UK ,Food Production Branch,Capita Business Travel Ltd,LI408915,134.8,CONSOLIDATED INVOICE 1/5/12 TO 15/5/12,DE21 6BF,Admin
Food Standards Agency,Food Standards Agency,31/05/2012,International Travel,Food Production Branch,Capita Business Travel Ltd,LI408915,374.46,CONSOLIDATED INVOICE 1/5/12 TO 15/5/12,DE21 6BF,Admin
Food Standards Agency,Food Standards Agency,31/05/2012,International Travel,Food Hygiene Policy Branch,Capita Business Travel Ltd,LI408915,218.75,CONSOLIDATED INVOICE 1/5/12 TO 15/5/12,DE21 6BF,Admin
Food Standards Agency,Food Standards Agency,31/05/2012,Travel UK ,Animal Feed Branch,Capita Business Travel Ltd,LI408915,551.4,CONSOLIDATED INVOICE 1/5/12 TO 15/5/12,DE21 6BF,Admin
Food Standards Agency,Food Standards Agency,31/05/2012,Subsistence UK,Animal Feed Branch,Booking Services International Ltd,223780621,158,HOTEL CHARGES 1/5/12 TO 15/5/12,TA1 2PF,Admin
Food Standards Agency,Food Standards Agency,31/05/2012,International Travel,Allergens,Capita Business Travel Ltd,LI408915,98.75,CONSOLIDATED INVOICE 1/5/12 TO 15/5/12,DE21 6BF,Admin
Food Standards Agency,Food Standards Agency,31/05/2012,Subsistence UK,Allergens,Booking Services International Ltd,223780621,147.6,HOTEL CHARGES 1/5/12 TO 15/5/12,TA1 2PF,Admin
Food Standards Agency,Food Standards Agency,31/05/2012,Travel UK ,Food Policy Strategy HoD,Capita Business Travel Ltd,LI408915,463.98,CONSOLIDATED INVOICE 1/5/12 TO 15/5/12,DE21 6BF,Admin
Food Standards Agency,Food Standards Agency,31/05/2012,Subsistence UK,Food Policy Strategy HoD,Booking Services International Ltd,223780621,150,HOTEL CHARGES 1/5/12 TO 15/5/12,TA1 2PF,Admin
Food Standards Agency,Food Standards Agency,31/05/2012,Subsistence UK,European & International Strategy,Booking Services International Ltd,223780621,135.6,HOTEL CHARGES 1/5/12 TO 15/5/12,TA1 2PF,Admin
Food Standards Agency,Food Standards Agency,31/05/2012,Travel UK ,Planning and Performance,Capita Business Travel Ltd,LI408915,"1,636.00",CONSOLIDATED INVOICE 1/5/12 TO 15/5/12,DE21 6BF,Admin
Food Standards Agency,Food Standards Agency,31/05/2012,Subsistence UK,Planning and Performance,Booking Services International Ltd,223780621,"1,057.20",HOTEL CHARGES 1/5/12 TO 15/5/12,TA1 2PF,Admin
Food Standards Agency,Food Standards Agency,31/05/2012,International Travel,Food Policy Private Office,Capita Business Travel Ltd,LI408915,-331.25,CONSOLIDATED INVOICE 1/5/12 TO 15/5/12,DE21 6BF,Admin
Food Standards Agency,Food Standards Agency,31/05/2012,Travel UK ,Finance Director & Branch,Capita Business Travel Ltd,LI408915,"1,484.40",CONSOLIDATED INVOICE 1/5/12 TO 15/5/12,DE21 6BF,Admin
Food Standards Agency,Food Standards Agency,31/05/2012,Car hire expenses (short term),Finance Director & Branch,Capita Business Travel Ltd,LI408915,62.77,CONSOLIDATED INVOICE 1/5/12 TO 15/5/12,DE21 6BF,Admin
Food Standards Agency,Food Standards Agency,31/05/2012,Subsistence UK,Finance Director & Branch,Booking Services International Ltd,223780621,"1,429.20",HOTEL CHARGES 1/5/12 TO 15/5/12,TA1 2PF,Admin
Food Standards Agency,Food Standards Agency,31/05/2012,Travel UK ,HR,Capita Business Travel Ltd,LI408915,"3,086.91",CONSOLIDATED INVOICE 1/5/12 TO 15/5/12,DE21 6BF,Admin
Food Standards Agency,Food Standards Agency,31/05/2012,Car hire expenses (short term),HR,Capita Business Travel Ltd,LI408915,267.73,CONSOLIDATED INVOICE 1/5/12 TO 15/5/12,DE21 6BF,Admin
Food Standards Agency,Food Standards Agency,31/05/2012,Subsistence UK,HR,Booking Services International Ltd,223780621,"2,556.00",HOTEL CHARGES 1/5/12 TO 15/5/12,TA1 2PF,Admin
Food Standards Agency,Food Standards Agency,31/05/2012,Travel UK ,Procurement,Capita Business Travel Ltd,LI408915,381.6,CONSOLIDATED INVOICE 1/5/12 TO 15/5/12,DE21 6BF,Admin
Food Standards Agency,Food Standards Agency,31/05/2012,Subsistence UK,Procurement,Booking Services International Ltd,223780621,559.2,HOTEL CHARGES 1/5/12 TO 15/5/12,TA1 2PF,Admin
Food Standards Agency,Food Standards Agency,31/05/2012,Travel UK ,IT HoD,Capita Business Travel Ltd,LI408915,142.4,CONSOLIDATED INVOICE 1/5/12 TO 15/5/12,DE21 6BF,Admin
Food Standards Agency,Food Standards Agency,31/05/2012,Subsistence UK,IT HoD,Booking Services International Ltd,223780621,75,HOTEL CHARGES 1/5/12 TO 15/5/12,TA1 2PF,Admin
Food Standards Agency,Food Standards Agency,31/05/2012,Travel UK ,IT Service Delivery,Capita Business Travel Ltd,LI408915,86,CONSOLIDATED INVOICE 1/5/12 TO 15/5/12,DE21 6BF,Admin
Food Standards Agency,Food Standards Agency,31/05/2012,Subsistence UK,IT Service Delivery,Booking Services International Ltd,223780621,123.6,HOTEL CHARGES 1/5/12 TO 15/5/12,TA1 2PF,Admin
Food Standards Agency,Food Standards Agency,31/05/2012,Other Accommodation Costs,IT Strategy & Development,Equanet,11330011,"2,500.00",PO 404692 SUPPORT AND SERVICES FSA CODE WORK,BL9 7BJ,Admin
Food Standards Agency,Food Standards Agency,31/05/2012,Other Accommodation Costs,IT Strategy & Development,Equanet,11330011,500,PO 404692 SUPPORT AND SERVICES FSA CODE WORK,BL9 7BJ,Admin
Food Standards Agency,Food Standards Agency,31/05/2012,IT equipment maintenance,IT Strategy & Development,Equanet,11330011,"24,819.41",PO 404692 SUPPORT AND SERVICES FSA CODE WORK,BL9 7BJ,Admin
Food Standards Agency,Food Standards Agency,31/05/2012,IT equipment maintenance,IT Strategy & Development,Equanet,11330011,"4,963.88",PO 404692 SUPPORT AND SERVICES FSA CODE WORK,BL9 7BJ,Admin
Food Standards Agency,Food Standards Agency,31/05/2012,Subsistence UK,IT Strategy,Booking Services International Ltd,223780621,503.6,HOTEL CHARGES 1/5/12 TO 15/5/12,TA1 2PF,Admin
Food Standards Agency,Food Standards Agency,31/05/2012,Travel UK ,IT Information & Knowledge Management,Capita Business Travel Ltd,LI408915,227.3,CONSOLIDATED INVOICE 1/5/12 TO 15/5/12,DE21 6BF,Admin
Food Standards Agency,Food Standards Agency,31/05/2012,Travel UK ,Internal Audit,Capita Business Travel Ltd,LI408915,253.6,CONSOLIDATED INVOICE 1/5/12 TO 15/5/12,DE21 6BF,Admin
Food Standards Agency,Food Standards Agency,31/05/2012,Subsistence UK,Internal Audit,Booking Services International Ltd,223780621,276.05,HOTEL CHARGES 1/5/12 TO 15/5/12,TA1 2PF,Admin
Food Standards Agency,Food Standards Agency,31/05/2012,Subsistence UK,Field OPS - Region 1 Scotland,Booking Services International Ltd,223780621,210,HOTEL CHARGES 1/5/12 TO 15/5/12,TA1 2PF,Programme
Food Standards Agency,Food Standards Agency,31/05/2012,Conference and meeting facilities including accommodation,Field OPS - Region 1 Scotland,Booking Services International Ltd,223780621,107,HOTEL CHARGES 1/5/12 TO 15/5/12,TA1 2PF,Programme
Food Standards Agency,Food Standards Agency,31/05/2012,Subsistence UK,Field OPS - Region 2 Wales,Booking Services International Ltd,223780621,210,HOTEL CHARGES 1/5/12 TO 15/5/12,TA1 2PF,Programme
Food Standards Agency,Food Standards Agency,31/05/2012,Travel UK ,Field OPS - Region 3 North West England,Capita Business Travel Ltd,LI408915,30.5,CONSOLIDATED INVOICE 1/5/12 TO 15/5/12,DE21 6BF,Programme
Food Standards Agency,Food Standards Agency,31/05/2012,Subsistence UK,Field OPS - Region 3 North West England,Booking Services International Ltd,223780621,420,HOTEL CHARGES 1/5/12 TO 15/5/12,TA1 2PF,Programme
Food Standards Agency,Food Standards Agency,31/05/2012,Subsistence UK,Field OPS - Region 4 North East England,Booking Services International Ltd,223780621,210,HOTEL CHARGES 1/5/12 TO 15/5/12,TA1 2PF,Programme
Food Standards Agency,Food Standards Agency,31/05/2012,Subsistence UK,Field OPS - Region 5 South West England,Booking Services International Ltd,223780621,560,HOTEL CHARGES 1/5/12 TO 15/5/12,TA1 2PF,Programme
Food Standards Agency,Food Standards Agency,31/05/2012,Travel UK ,Field OPS - Region 6 South East England,Capita Business Travel Ltd,LI408915,92.6,CONSOLIDATED INVOICE 1/5/12 TO 15/5/12,DE21 6BF,Programme
Food Standards Agency,Food Standards Agency,31/05/2012,Subsistence UK,Field OPS - Region 6 South East England,Booking Services International Ltd,223780621,420,HOTEL CHARGES 1/5/12 TO 15/5/12,TA1 2PF,Programme
"Date Run: 13-JUN-12 11.30.41 AM --- Company Code : '17' , Payment Start Date : '01-MAY-2012' , Payment End Date : '31-MAY-2012'",,,,,,,,,,
